Workbook

Sheet Щит
B1: Общие данные | H1: Ввод | P1: Источник
B2: Шифр проекта | C2: 01-02.ЭМ | H2: Рубиль ник | I2: Наличие | K2: ДА | P2: Наименование | S2: ВРУ секция 2
B3: Название проекта | C3: Реконструкция помещения по адресу: г. Санкт- Петербург, Смольный, каб. 101 | I3: Марка | K3: ВН-32 3Р
I4: Номинал | K4: 40 | P4: Номинал автомата | S4: 40
I5: Примечание | K5: С возможностью опломбирования | P5: Кабель | Q5: Марка | S5: ВВГнг
B6: Раздел | C6: Силовое оборудование и электроосвещение | Q6: Кол-во жил | S6: 4
H7: Автомат | I7: Наличие | K7: ДА | Q7: Сечение | S7: 6
B8: Название щита | C8: ЩС1 | I8: Марка | K8: =model -> ВА47-29 3Р | Q8: Длина м | S8: 20
B9: Стадия | C9: Р | I9: Номинал | K9: =I_nom -> 20
B10: Номер листа | C10: 2 | I10: Примечание | P10: Перекос Фаз
B11: Разработал | C11: Петров | P11: Фаза | Q11: Ток | R11: Средний | S11: Перекос
B12: Контроль | C12: Сидоров | H12: Счетчик | I12: Наличие | K12: ДА | P12: L1 | Q12: =SUMIF(L24:L451,"L1",J24:J451) -> 5.681818182 | R12: =(Q12+Q13+Q14)/3+Q15 -> 14.04671717 | S12: =((Q12+Q15)-R12)/R12 -> -0.03370786517
B13: Утвердил | C13: Козлов | I13: Марка | K13: Меркурий 236 ART | P13: L2 | Q13: =SUMIF(L24:L451,"L2",J24:J451) -> 5.681818182 | S13: =((Q13+Q15)-R12)/R12 -> -0.03370786517
B14: Дата | C14: 02.18 | I14: Номинал | K14: 380/220В 5/60A | P14: L3 | Q14: =SUMIF(L24:L451,"L3",J24:J451) -> 7.102272727 | S14: =((Q14+Q15)-R12)/R12 -> 0.06741573034
B15: Кабель для групп | C15: NYM | I15: Примечание | K15: Счетчик запрограммировать в однотарифный режим | P15: L1L2L3 | Q15: =SUMIF(L24:L451,"L1L2L3",J24:J451) -> 7.891414141
A20: Потребитель | C20: Расчетная нагрузка | K20: Тип потребителя | L20: Автомат | P20: УЗО | S20: Кабель
A21: Номер группы | B21: Наименование | C21: P уст., кВт | D21: Коэф-т спроса | E21: cos φ | F21: tg φ | G21: Р акт., кВт | H21: Q, кВАр | I21: S, кВА | J21: I расч., А | L21: Фаза | M21: Номинал | N21: Модель | O21: Тип | P21: Номинал | Q21: Ток утечки | R21: Модель | S21: Длина падения м | T21: Сечение | U21: Падение напр. % | V21: Длина общая м
B23: Итого на щит | C23: =SUM(C24:C448) -> 8.7 | D23: 0.9 | E23: =COS(ATAN(F23)) -> 0.9455124499 | F23: =SUM(H24:H451)/SUM(G24:G451) -> 0.344348659 | G23: =C23*D23 -> 7.83 | H23: =F23*G23 -> 2.69625 | I23: =SQRT(G23^2+H23^2) -> 8.281223585 | J23: =IF(L23="L1L2L3",I23/0.66,I23/0.22) -> 12.54730846 | L23: L1L2L3 | M23: 20 | N23: ВА47-29 3Р
A24: Гр.1 | B24: Бойлер | C24: 5 | D24: 1 | E24: 0.96 | F24: =TAN(ACOS(E24)) -> 0.2916666667 | G24: =C24*D24 -> 5 | H24: =F24*G24 -> 1.458333333 | I24: =SQRT(G24^2+H24^2) -> 5.208333333 | J24: =IF(L24="L1L2L3",I24/0.66,I24/0.22) -> 7.891414141 | K24: К | L24: L1L2L3 | M24: 16 | N24: ВА47-29 3Р | O24: АВТ | S24: 6 | T24: 2.5 | U24: =IF(L24="L1L2L3",0.0125*G24*S24/T24,0.0756*G24*S24/T24) -> 0.15 | V24: 20
A25: Гр.2 | B25: Освещение пом. 2, 3, 4, 5 | C25: 1 | D25: 1 | E25: 0.8 | F25: =TAN(ACOS(E25)) -> 0.75 | G25: =C25*D25 -> 1 | H25: =F25*G25 -> 0.75 | I25: =SQRT(G25^2+H25^2) -> 1.25 | J25: =IF(L25="L1L2L3",I25/0.66,I25/0.22) -> 5.681818182 | K25: Л | L25: L1 | M25: 16 | N25: ВА47-29 1Р | O25: АВТ | S25: 10 | T25: 1.5 | U25: =IF(L25="L1L2L3",0.0125*G25*S25/T25,0.0756*G25*S25/T25) -> 0.504 | V25: 20
A26: Гр.3 | B26: Розетки пом. 21, 22, 23, 24, 25, 33, 37, 39, 41, 44 | C26: 1.2 | D26: 1 | E26: 0.96 | F26: 0.2916666667 | G26: =C26*D26 -> 1.2 | H26: =F26*G26 -> 0.35 | I26: =SQRT(G26^2+H26^2) -> 1.25 | J26: =IF(L26="L1L2L3",I26/0.66,I26/0.22) -> 5.681818182 | K26: Р | L26: L2 | M26: 16 | N26: ВА47-29 1Р | O26: УЗО | P26: 16 | Q26: 30 | R26: ВД1-63 2P | S26: 20 | T26: 2.5 | U26: =IF(L26="L1L2L3",0.0125*G26*S26/T26,0.0756*G26*S26/T26) -> 0.72576 | V26: 20
A27: Гр.4 | B27: Оборудование каб. 100-105 | C27: 1.5 | D27: 1 | E27: 0.96 | F27: =TAN(ACOS(E27)) -> 0.2916666667 | G27: =C27*D27 -> 1.5 | H27: =F27*G27 -> 0.4375 | I27: =SQRT(G27^2+H27^2) -> 1.5625 | J27: 7.102272727 | K27: Р | L27: L3 | M27: 16 | N27: АД12 2Р | O27: ДИФ | S27: 20 | T27: 2.5 | U27: =IF(L27="L1L2L3",0.0125*G27*S27/T27,0.0756*G27*S27/T27) -> 0.9072 | V27: 20
A28: Гр.5 | B28: Резерв | G28: =C28*D28 -> 0 | H28: =F28*G28 -> 0 | I28: =SQRT(G28^2+H28^2) -> 0 | J28: =IF(L28="L1L2L3",I28/0.66,I28/0.22) -> 0 | K28: Р | L28: L1 | M28: 16 | N28: ВА47-29 1Р | O28: АВТ | U28: =IF(L28="L1L2L3",0.0125*G28*S28/T28,0.0756*G28*S28/T28) ->  | V28: 20

Sheet Param (hidden)
A1: L1 | B1: АВТ | C1: Р | D1: ДА
A2: L2 | B2: ДИФ | C2: Л | D2: НЕТ
A3: L3 | B3: УЗО | C3: К
A4: L1L2L3
